Workbook

Sheet Лист1
A1: Школа | C1: МБОУ Лестранхозовская СОШ | F1: Утвердил: | G1: должность | H1: директор МБОУ Лестранхозовской СОШ
A2: Типовое примерное меню приготавливаемых блюд | G2: фамилия | H2: А.А. Щекочихина
A3: Возрастная категория | E3: 7-11 лет | G3: дата | H3: 20 | I3: 8 | J3: 2025
H4: день | I4: месяц | J4: год
A5: Неделя | B5: День недели | C5: Прием пищи | D5: Раздел меню | E5: Блюда | F5: Вес блюда, г | G5: Белки | H5: Жиры | I5: Углеводы | J5: Калорийность | K5: № рецептуры | L5: Цена
A6: 1 | B6: 1 | C6: Завтрак | D6: гор.блюдо | E6: каша вязкая молочная пшенная с изюмом | F6: 200 | G6: 8.1 | H6: 9.7 | I6: 41.5 | J6: 285.8 | K6: 54-7к
D7: гор.напиток | E7: чай с сахаром | F7: 200 | G7: 0.2 | H7: 0 | I7: 6.5 | J7: 26.8 | K7: 54-2гн
D8: хлеб | E8: хлеб | F8: 30 | G8: 2.3 | H8: 0.2 | I8: 14.8 | J8: 70.3
E9: сыр твердых сортов в нарезке | F9: 30 | G9: 7 | H9: 8.8 | I9: 0 | J9: 107.5 | K9: 54-1з
D10: фрукты | E10: мандарин | F10: 100 | G10: 1 | H10: 0.2 | I10: 7.5 | J10: 35
D12: итого | F12: =SUM(F6:F11) -> 560 | G12: =SUM(G6:G11) -> 18.6 | H12: =SUM(H6:H11) -> 18.9 | I12: =SUM(I6:I11) -> 70.3 | J12: =SUM(J6:J11) -> 525.4 | L12: =SUM(L6:L11) -> 0
A13: =A6 -> 1 | B13: =B6 -> 1 | C13: Обед | D13: закуска
D14: 1 блюдо
D15: 2 блюдо
D16: гарнир
D17: напиток
D18: хлеб бел.
D19: хлеб черн.
D22: итого | F22: =SUM(F13:F21) -> 0 | G22: =SUM(G13:G21) -> 0 | H22: 0 | I22: 0 | J22: 0 | L22: =SUM(L13:L21) -> 0
A23: =A6 -> 1 | B23: =B6 -> 1 | C23: Итого за день: | F23: =F12+F22 -> 560 | G23: =G12+G22 -> 18.6 | H23: 18.9 | I23: 70.3 | J23: 525.4 | L23: =L12+L22 -> 0
A24: 1 | B24: 2 | C24: Завтрак | D24: гор.блюдо | E24: картофельное пюре | F24: 150 | G24: 3.2 | H24: 5.2 | I24: 19.8 | J24: 139.4 | K24: 54-11г
D25: гор.напиток | E25: чай с молоком и сахаром | F25: 200 | G25: 1.6 | H25: 1.1 | I25: 8.7 | J25: 65.9 | K25: 54-4гн
D26: хлеб | E26: хлеб | F26: 30 | G26: 2.3 | H26: 0.2 | I26: 14.8 | J26: 70.3
E27: курица тушеная с морковью | F27: 100 | G27: 14.1 | H27: 5.7 | I27: 4.4 | J27: 152.4 | K27: 54-25м
D28: фрукты | E28: яблоко | F28: 100 | G28: 0.4 | H28: 0.4 | I28: 9.8 | J28: 44.4
D31: итого | F31: =SUM(F24:F30) -> 580 | G31: =SUM(G24:G30) -> 21.6 | H31: =SUM(H24:H30) -> 12.6 | I31: =SUM(I24:I30) -> 57.5 | J31: =SUM(J24:J30) -> 472.4 | L31: =SUM(L24:L30) -> 0
A32: =A24 -> 1 | B32: =B24 -> 2 | C32: Обед | D32: закуска
D33: 1 блюдо
D34: 2 блюдо
D35: гарнир
D36: напиток
D37: хлеб бел.
D38: хлеб черн.
D41: итого | F41: =SUM(F32:F40) -> 0 | G41: =SUM(G32:G40) -> 0 | H41: 0 | I41: 0 | J41: 0 | L41: 0
A42: =A24 -> 1 | B42: =B24 -> 2 | C42: Итого за день: | F42: =F31+F41 -> 580 | G42: =G31+G41 -> 21.6 | H42: 12.6 | I42: 57.5 | J42: 472.4 | L42: 0
A43: 1 | B43: 3 | C43: Завтрак | D43: гор.блюдо | E43: каша жидкая молочная рисовая | F43: 200 | G43: 5.3 | H43: 5.4 | I43: 28.7 | J43: 184.5 | K43: 54-25к
D44: гор.напиток | E44: чай с лимоном и сахаром | F44: 200 | G44: 0.3 | H44: 0 | I44: 6.7 | J44: 27.9 | K44: 54-3гн
D45: хлеб | E45: хлеб | F45: 30 | G45: 2.3 | H45: 0.2 | I45: 14.8 | J45: 70.3
E46: сыр (нарезка) | F46: 30 | G46: 7 | H46: 8.8 | I46: 0 | J46: 107.5 | K46: 54-1з
E47: ватрушка творожная | F47: 50 | G47: 8.3 | H47: 10.4 | I47: 15 | J47: 185.7 | K47: 54-1в
D50: итого | F50: =SUM(F43:F49) -> 510 | G50: =SUM(G43:G49) -> 23.2 | H50: =SUM(H43:H49) -> 24.8 | I50: =SUM(I43:I49) -> 65.2 | J50: =SUM(J43:J49) -> 575.9 | L50: =SUM(L43:L49) -> 0
A51: =A43 -> 1 | B51: =B43 -> 3 | C51: Обед | D51: закуска
D52: 1 блюдо
D53: 2 блюдо
D54: гарнир
D55: напиток
D56: хлеб бел.
D57: хлеб черн.
D60: итого | F60: =SUM(F51:F59) -> 0 | G60: =SUM(G51:G59) -> 0 | H60: 0 | I60: 0 | J60: 0 | L60: 0
A61: =A43 -> 1 | B61: =B43 -> 3 | C61: Итого за день: | F61: =F50+F60 -> 510 | G61: =G50+G60 -> 23.2 | H61: 24.8 | I61: 65.2 | J61: 575.9 | L61: 0
A62: 1 | B62: 4 | C62: Завтрак | D62: гор.блюдо | E62: суп молочный с макаронными изделиями | F62: 200 | G62: 5.5 | H62: 4.5 | I62: 17.9 | J62: 134.2 | K62: 54-19к
D63: гор.напиток | E63: какао с молоком сгущенным | F63: 200 | G63: 3.5 | H63: 3.3 | I63: 22.3 | J63: 133.4 | K63: 54-22гн
D64: хлеб | E64: хлеб | F64: 30 | G64: 2.3 | H64: 0.2 | I64: 14.8 | J64: 70.3
E65: сыр (нарезка) | F65: 30 | G65: 7 | H65: 8.8 | I65: 0 | J65: 107.5 | K65: 54-1з
D66: фрукты | E66: яблоко | F66: 100 | G66: 0.4 | H66: 0.4 | I66: 9.8 | J66: 44.4
D69: итого | F69: =SUM(F62:F68) -> 560 | G69: =SUM(G62:G68) -> 18.7 | H69: =SUM(H62:H68) -> 17.2 | I69: =SUM(I62:I68) -> 64.8 | J69: =SUM(J62:J68) -> 489.8 | L69: =SUM(L62:L68) -> 0
A70: =A62 -> 1 | B70: =B62 -> 4 | C70: Обед | D70: закуска
D71: 1 блюдо
D72: 2 блюдо
D73: гарнир
D74: напиток
D75: хлеб бел.
D76: хлеб черн.
D79: итого | F79: =SUM(F70:F78) -> 0 | G79: =SUM(G70:G78) -> 0 | H79: 0 | I79: 0 | J79: 0 | L79: 0
A80: =A62 -> 1 | B80: =B62 -> 4 | C80: Итого за день: | F80: =F69+F79 -> 560 | G80: =G69+G79 -> 18.7 | H80: 17.2 | I80: 64.8 | J80: 489.8 | L80: 0
A81: 1 | B81: 5 | C81: Завтрак | D81: гор.блюдо | E81: пудинг из творога с яблоком | F81: 150 | G81: 22.9 | H81: 10.8 | I81: 15.4 | J81: 250.3 | K81: 54-4т
D82: гор.напиток | E82: кофейный напиток с молоком | F82: 200 | G82: 3.8 | H82: 2.9 | I82: 11.3 | J82: 86 | K82: 54-23гн
D83: хлеб | E83: хлеб | F83: 30 | G83: 2.3 | H83: 0.2 | I83: 14.8 | J83: 70.3
E84: повидло | F84: 30 | G84: 0.1 | H84: 0 | I84: 19.5 | J84: 78.5
D85: фрукты | E85: мандарин | F85: 100 | G85: 0.8 | H85: 0.2 | I85: 7.5 | J85: 35
D88: итого | F88: =SUM(F81:F87) -> 510 | G88: =SUM(G81:G87) -> 29.9 | H88: =SUM(H81:H87) -> 14.1 | I88: =SUM(I81:I87) -> 68.5 | J88: =SUM(J81:J87) -> 520.1 | L88: =SUM(L81:L87) -> 0
A89: =A81 -> 1 | B89: =B81 -> 5 | C89: Обед | D89: закуска
D90: 1 блюдо
D91: 2 блюдо
D92: гарнир
D93: напиток
D94: хлеб бел.
D95: хлеб черн.
D98: итого | F98: =SUM(F89:F97) -> 0 | G98: =SUM(G89:G97) -> 0 | H98: 0 | I98: 0 | J98: 0 | L98: 0
A99: =A81 -> 1 | B99: =B81 -> 5 | C99: Итого за день: | F99: =F88+F98 -> 510 | G99: =G88+G98 -> 29.9 | H99: 14.1 | I99: 68.5 | J99: 520.1 | L99: 0
A100: 2 | B100: 1 | C100: Завтрак | D100: гор.блюдо | E100: каша жидкая молочная кукурузная | F100: 200 | G100: 5.8 | H100: 5.8 | I100: 33 | J100: 207.9 | K100: 54-1к
D101: гор.напиток | E101: какао с молоком сгущенным | F101: 200 | G101: 3.5 | H101: 3.3 | I101: 22.3 | J101: 133.4 | K101: 54-22гн
D102: хлеб | E102: хлеб | F102: 30 | G102: 2.3 | H102: 0.2 | I102: 14.8 | J102: 70.3
E103: масло сливочное (порциями) | F103: 10 | G103: 0.1 | H103: 7.2 | I103: 0.1 | J103: 66.1 | K103: 53-19з
D104: фрукты | E104: мандарин | F104: 100 | G104: 0.8 | H104: 0.2 | I104: 7.5 | J104: 35
D107: итого | F107: =SUM(F100:F106) -> 540 | G107: =SUM(G100:G106) -> 12.5 | H107: =SUM(H100:H106) -> 16.7 | I107: =SUM(I100:I106) -> 77.7 | J107: =SUM(J100:J106) -> 512.7 | L107: =SUM(L100:L106) -> 0
A108: =A100 -> 2 | B108: =B100 -> 1 | C108: Обед | D108: закуска
D109: 1 блюдо
D110: 2 блюдо
D111: гарнир
D112: напиток
D113: хлеб бел.
D114: хлеб черн.
D117: итого | F117: =SUM(F108:F116) -> 0 | G117: =SUM(G108:G116) -> 0 | H117: 0 | I117: 0 | J117: 0 | L117: =SUM(L108:L116) -> 0
A118: =A100 -> 2 | B118: =B100 -> 1 | C118: Итого за день: | F118: =F107+F117 -> 540 | G118: =G107+G117 -> 12.5 | H118: 16.7 | I118: 77.7 | J118: 512.7 | L118: 0
A119: 2 | B119: 2 | C119: Завтрак | D119: гор.блюдо | E119: сырники | F119: 150 | G119: 29.4 | H119: 8.6 | I119: 31 | J119: 319.1 | K119: 54-6т
D120: гор.напиток | E120: чай с сахаром | F120: 200 | G120: 0.2 | H120: 0.4 | I120: 6.5 | J120: 26.8 | K120: 54-2гн
D121: хлеб | E121: хлеб | F121: 30 | G121: 2.3 | H121: 0.2 | I121: 14.8 | J121: 70.3
E122: соус шоколадный | F122: 50 | G122: 2.7 | H122: 2.4 | I122: 21.1 | J122: 116.2 | K122: 54-7соус
D123: фрукты | E123: яблоко | F123: 100 | G123: 0.4 | H123: 0 | I123: 9.8 | J123: 44.4
D126: итого | F126: =SUM(F119:F125) -> 530 | G126: =SUM(G119:G125) -> 35 | H126: =SUM(H119:H125) -> 11.6 | I126: =SUM(I119:I125) -> 83.2 | J126: 576.8 | L126: =SUM(L119:L125) -> 0
A127: =A119 -> 2 | B127: =B119 -> 2 | C127: Обед | D127: закуска
D128: 1 блюдо
D129: 2 блюдо
D130: гарнир
D131: напиток
D132: хлеб бел.
D133: хлеб черн.
D136: итого | F136: =SUM(F127:F135) -> 0 | G136: =SUM(G127:G135) -> 0 | H136: 0 | I136: 0 | J136: 0 | L136: =SUM(L127:L135) -> 0
A137: =A119 -> 2 | B137: =B119 -> 2 | C137: Итого за день: | F137: =F126+F136 -> 530 | G137: =G126+G136 -> 35 | H137: 11.6 | I137: 83.2 | J137: 576.8 | L137: 0
A138: 2 | B138: 3 | C138: Завтрак | D138: гор.блюдо | E138: каша Дружба | F138: 200 | G138: 5 | H138: 5.8 | I138: 24.1 | J138: 168.9 | K138: 54-16к
D139: гор.напиток | E139: чай с молоком и сахаром | F139: 200 | G139: 1.6 | H139: 1.1 | I139: 8.7 | J139: 65.9 | K139: 54-4гн
D140: хлеб | E140: хлеб | F140: 30 | G140: 2.3 | H140: 0.2 | I140: 14.8 | J140: 70.3
E141: сыр твердых сортов в нарезке | F141: 30 | G141: 7 | H141: 8.8 | I141: 0 | J141: 108 | K141: 54-1з
E142: кекс столичный | F142: 50 | G142: 2.7 | H142: 8.3 | I142: 23.9 | J142: 181.8 | K142: 54-4в
D145: итого | F145: =SUM(F138:F144) -> 510 | G145: =SUM(G138:G144) -> 18.6 | H145: 24.2 | I145: 71.5 | J145: 594.9 | L145: =SUM(L138:L144) -> 0
A146: =A138 -> 2 | B146: =B138 -> 3 | C146: Обед | D146: закуска
D147: 1 блюдо
D148: 2 блюдо
D149: гарнир
D150: напиток
D151: хлеб бел.
D152: хлеб черн.
D155: итого | F155: =SUM(F146:F154) -> 0 | G155: =SUM(G146:G154) -> 0 | H155: 0 | I155: 0 | J155: 0 | L155: =SUM(L146:L154) -> 0
A156: =A138 -> 2 | B156: =B138 -> 3 | C156: Итого за день: | F156: =F145+F155 -> 510 | G156: =G145+G155 -> 18.6 | H156: 24.2 | I156: 71.5 | J156: 594.9 | L156: 0
A157: 2 | B157: 4 | C157: Завтрак | D157: гор.блюдо | E157: макароны отварные | F157: 150 | G157: 5.40 | H157: 4.9 | I157: 32.8 | J157: 196.80 | K157: 54-1г
D158: гор.напиток | E158: кофейный напиток с молоком | F158: 200 | G158: 3.8 | H158: 2.9 | I158: 11.3 | J158: 86.00 | K158: 54-23гн
D159: хлеб | E159: хлеб | F159: 30 | G159: 2 | H159: 0.2 | I159: 14.8 | J159: 70.30
E160: тефтели из говядины с рисом | F160: 90 | G160: 13.1 | H160: 13.2 | I160: 7.2 | J160: 200 | K160: 54-16м
E161: соус красный основной | F161: 50 | G161: 1.7 | H161: 1.2 | I161: 4.5 | J161: 35.4 | K161: 54-3соус
D164: итого | F164: =SUM(F157:F163) -> 520 | G164: =SUM(G157:G163) -> 26.3 | H164: 22.4 | I164: 70.6 | J164: 588.2 | L164: =SUM(L157:L163) -> 0
A165: =A157 -> 2 | B165: =B157 -> 4 | C165: Обед | D165: закуска
D166: 1 блюдо
D167: 2 блюдо
D168: гарнир
D169: напиток
D170: хлеб бел.
D171: хлеб черн.
D174: итого | F174: =SUM(F165:F173) -> 0 | G174: =SUM(G165:G173) -> 0 | H174: 0 | I174: 0 | J174: 0 | L174: =SUM(L165:L173) -> 0
A175: =A157 -> 2 | B175: =B157 -> 4 | C175: Итого за день: | F175: =F164+F174 -> 520 | G175: =G164+G174 -> 26.3 | H175: 22.4 | I175: 70.6 | J175: 588.2 | L175: 0
A176: 2 | B176: 5 | C176: Завтрак | D176: гор.блюдо | E176: каша вязкая молочная овсянная | F176: 200 | G176: 8.6 | H176: 11.3 | I176: 34.3 | J176: 272.9 | K176: 54-9к
D177: гор.напиток | E177: чай с сахаром | F177: 200 | G177: 0.2 | H177: 0 | I177: 6.5 | J177: 26.8 | K177: 54-2гн
D178: хлеб | E178: хлеб | F178: 30 | G178: 2.3 | H178: 0.2 | I178: 14.8 | J178: 70.3
E179: булочка школьная | F179: 70 | G179: 6.1 | H179: 2.1 | I179: 39.7 | J179: 201.4 | K179: 54-9в
D183: итого | F183: =SUM(F176:F181) -> 500 | G183: =SUM(G176:G181) -> 17.2 | H183: =SUM(H176:H181) -> 13.6 | I183: =SUM(I176:I181) -> 95.3 | J183: =SUM(J176:J181) -> 571.4 | L183: =SUM(L176:L181) -> 0
A184: =A176 -> 2 | B184: =B176 -> 5 | C184: Обед | D184: закуска
D185: 1 блюдо
D186: 2 блюдо
D187: гарнир
D188: напиток
D189: хлеб бел.
D190: хлеб черн.
D193: итого | F193: =SUM(F184:F192) -> 0 | G193: =SUM(G184:G192) -> 0 | H193: 0 | I193: 0 | J193: 0 | L193: =SUM(L184:L192) -> 0
A194: =A176 -> 2 | B194: =B176 -> 5 | C194: Итого за день: | F194: =F183+F193 -> 500 | G194: =G183+G193 -> 17.2 | H194: 13.6 | I194: 95.3 | J194: 571.4 | L194: 0
C195: Среднее значение за период: | F195: =(F23+F42+F61+F80+F99+F118+F137+F156+F175+F194)/(IF(F23=0,0,1)+IF(F42=0,0,1)+IF(F61=0,0,1)+IF(F80=0,0,1)+IF(F99=0,0,1)+IF(F118=0,0,1)+IF(F137=0,0,1)+IF(F156=0,0,1)+IF(F175=0,0,1)+IF(F194=0,0,1)) -> 532 | G195: =(G23+G42+G61+G80+G99+G118+G137+G156+G175+G194)/(IF(G23=0,0,1)+IF(G42=0,0,1)+IF(G61=0,0,1)+IF(G80=0,0,1)+IF(G99=0,0,1)+IF(G118=0,0,1)+IF(G137=0,0,1)+IF(G156=0,0,1)+IF(G175=0,0,1)+IF(G194=0,0,1)) -> 22.16 | H195: 17.61 | I195: 72.46 | J195: 542.76 | L195: =(L23+L42+L61+L80+L99+L118+L137+L156+L175+L194)/(IF(L23=0,0,1)+IF(L42=0,0,1)+IF(L61=0,0,1)+IF(L80=0,0,1)+IF(L99=0,0,1)+IF(L118=0,0,1)+IF(L137=0,0,1)+IF(L156=0,0,1)+IF(L175=0,0,1)+IF(L194=0,0,1)) -> 
